fUSD/lending_fUSD_20250207
["ID","MTS","AMOUNT","RATE_DAILY","PERIOD"]
[352124402,1738955451867,-927.69,0.00016575,2]
[352124403,1738955451877,-500.0,0.00016575,2]
[352124404,1738955451886,-500.0,0.00016575,2]
[352124405,1738955451896,-2552.27,0.00016575,2]
[352124406,1738955451905,-1755.36,0.00016575,2]
[352124407,1738955451915,-500.0,0.00016575,2]
[352124408,1738955451925,-500.0,0.00016575,2]
[352124409,1738955451934,-558.04,0.00016575,2]
[352124410,1738955451943,-500.0,0.00016575,2]
[352124411,1738955451952,-7368.42,0.00016575,2]
[352124412,1738955451962,-500.0,0.00016575,2]
[352124413,1738955451971,-2364.04,0.00016575,2]
[352124414,1738955451981,-500.0,0.00016575,2]
[352124415,1738955451991,-500.0,0.00016575,2]
[352124416,1738955452000,-845.37,0.00016575,2]
[352124417,1738955452010,-500.0,0.00016575,2]
[352124418,1738955452019,-500.0,0.00016575,2]
[352124419,1738955452029,-500.0,0.00016575,2]
[352124420,1738955452038,-500.0,0.00016575,2]
[352124421,1738955452047,-1639.45,0.00016575,2]
[352124422,1738955452057,-500.0,0.00016575,2]
[352124423,1738955452067,-2447.83,0.00016575,2]
[352124424,1738955452077,-500.0,0.00016575,2]
[352124425,1738955452086,-546.48,0.00016575,2]
[352124426,1738955452095,-1322.39,0.00016575,2]
[352124427,1738955452104,-500.0,0.00016575,2]
[352124428,1738955452114,-500.0,0.00016575,2]
[352124429,1738955452123,-2542.83,0.00016575,2]
[352124430,1738955452132,-1776.61,0.00016575,2]
[352124431,1738955452142,-500.0,0.00016575,2]
[352124432,1738955452151,-1712.83,0.00016575,2]
[352124433,1738955452163,-2187.59,0.00016575,2]
[352124434,1738955452173,-1057.55,0.00016575,2]
[352124435,1738955452183,-908.4,0.00016575,2]
[352124436,1738955452192,-500.0,0.00016575,2]
[352124437,1738955452201,-500.0,0.00016575,2]
[352124438,1738955452211,-500.0,0.00016575,2]
[352124439,1738955452220,-3731.5,0.00016575,2]
[352124440,1738955452230,-1802.42,0.00016575,2]
[352124441,1738955452240,-500.0,0.00016575,2]
[352124442,1738955452250,-500.0,0.00016575,2]
[352124443,1738955452259,-500.0,0.00016575,2]
[352124444,1738955452268,-1535.63,0.00016575,2]
[352124445,1738955452279,-500.0,0.00016575,2]
[352124446,1738955452288,-500.0,0.00016575,2]
[352124447,1738955452298,-500.0,0.00016575,2]
[352124448,1738955452308,-500.0,0.00016575,2]
[352124449,1738955452317,-500.0,0.00016575,2]
[352124450,1738955452327,-3537.16,0.00016575,2]
[352124451,1738955452337,-1493.24,0.00016575,2]
[352124452,1738955452346,-1156.0,0.00016575,2]
[352124453,1738955452357,-500.0,0.00016575,2]
[352124454,1738955452366,-530.35,0.00016575,2]
[352124455,1738955452375,-500.0,0.00016575,2]
[352124456,1738955452385,-1087.62,0.00016575,2]
[352124457,1738955452395,-500.0,0.00016575,2]
[352124458,1738955452404,-500.0,0.00016575,2]
[352124459,1738955452414,-2800.82,0.00016575,2]
[352124460,1738955452424,-3603.35,0.00016575,2]
[352124461,1738955452434,-500.0,0.00016575,2]
[352124462,1738955452444,-500.0,0.00016575,2]
[352124463,1738955452454,-500.0,0.00016575,2]
[352124464,1738955452463,-500.0,0.00016575,2]
[352124465,1738955452473,-1406.5,0.00016575,2]
[352124466,1738955452482,-4136.15,0.00016575,2]
[352124467,1738955452492,-3810.94,0.00016575,2]
[352124468,1738955452502,-471.27685829,0.00016575,2]
[352124469,1738955452511,-3044.91,0.00016575,2]
[352124470,1738955452521,-500.0,0.00016575,2]
[352124471,1738955452533,-856.32,0.00016575,2]
[352124472,1738955452718,-500.0,0.00016575,2]
[352124473,1738955452728,-500.0,0.00016575,2]
[352124474,1738955452737,-500.0,0.00016575,2]
[352124475,1738955452747,-5466.55,0.00016575,2]
[352124477,1738955452756,-500.0,0.00016575,2]
[352124479,1738955452765,-500.0,0.00016575,2]
[352124481,1738955452775,-500.0,0.00016575,2]
[352124483,1738955452785,-710.33,0.00016575,2]
[352124485,1738955452795,-1272.27,0.00016575,2]
[352124487,1738955452804,-554.37,0.00016575,2]
[352124489,1738955452814,-1135.79,0.00016575,2]
[352124491,1738955452823,-500.0,0.00016575,2]
[352124493,1738955452832,-500.0,0.00016575,2]
[352124495,1738955452842,-500.0,0.00016575,2]
[352124497,1738955452851,-500.0,0.00016575,2]
[352124499,1738955452861,-2837.72,0.00016575,2]
[352124501,1738955452870,-500.0,0.00016575,2]
[352124503,1738955452880,-905.38,0.00016575,2]
[352124505,1738955452889,-500.0,0.00016575,2]
[352124507,1738955452899,-500.0,0.00016575,2]
[352124509,1738955452909,-500.0,0.00016575,2]
[352124511,1738955452919,-150.0,0.00016585,2]
[352124513,1738955452928,-150.0,0.00016593,2]
[352124515,1738955452937,-150.0,0.00016594,2]
[352124517,1738955452946,-500.0,0.000166,2]
[352124519,1738955452955,-500.0,0.000166,2]
[352124521,1738955452965,-500.0,0.000166,2]
[352124523,1738955452974,-500.0,0.000166,2]
[352124525,1738955452983,-500.0,0.000166,2]
[352124527,1738955452993,-500.0,0.000166,2]
[352124529,1738955453002,-500.0,0.000166,2]
[352124531,1738955453011,-500.0,0.000166,2]
[352124533,1738955453020,-500.0,0.000166,2]
[352124535,1738955453030,-500.0,0.000166,2]
[352124537,1738955453040,-500.0,0.000166,2]
[352124539,1738955453049,-500.0,0.000166,2]
[352124541,1738955453059,-500.0,0.000166,2]
[352124544,1738955453068,-500.0,0.000166,2]
[352124546,1738955453077,-500.0,0.000166,2]
[352124548,1738955453087,-500.0,0.000166,2]
[352124549,1738955453096,-500.0,0.000166,2]
[352124551,1738955453105,-500.0,0.000166,2]
[352124553,1738955453115,-500.0,0.000166,2]
[352124555,1738955453124,-500.0,0.000166,2]
[352124558,1738955453133,-500.0,0.000166,2]
[352124560,1738955453143,-500.0,0.000166,2]
[352124562,1738955453153,-500.0,0.000166,2]
[352124564,1738955453165,-500.0,0.000166,2]
[352124566,1738955453174,-500.0,0.000166,2]
[352124568,1738955453183,-500.0,0.000166,2]
[352124570,1738955453192,-500.0,0.000166,2]
[352124572,1738955453202,-500.0,0.000166,2]
[352124574,1738955453211,-500.0,0.000166,2]
[352124576,1738955453221,-500.0,0.000166,2]
[352124578,1738955453230,-500.0,0.000166,2]
[352124579,1738955453240,-500.0,0.000166,2]
[352124581,1738955453251,-500.0,0.000166,2]
[352124583,1738955453260,-500.0,0.000166,2]
[352124585,1738955453269,-500.0,0.000166,2]
[352124587,1738955453278,-500.0,0.000166,2]
[352124589,1738955453288,-500.0,0.000166,2]
[352124591,1738955453297,-500.0,0.000166,2]
[352124593,1738955453306,-500.0,0.000166,2]
[352124595,1738955453315,-500.0,0.000166,2]
[352124597,1738955453324,-500.0,0.000166,2]
[352124599,1738955453334,-500.0,0.000166,2]
[352124601,1738955453344,-366.0,0.000166,2]
[352124603,1738955453353,-311.0,0.000166,2]
[352124605,1738955453362,-500.0,0.000166,2]
[352124607,1738955453371,-500.0,0.000166,2]
[352124609,1738955453381,-500.0,0.000166,2]
[352124611,1738955453390,-500.0,0.000166,2]
[352124613,1738955453400,-231.0,0.000166,2]
[352124616,1738955453410,-500.0,0.000166,2]
[352124618,1738955453419,-500.0,0.000166,2]
[352124620,1738955453429,-500.0,0.000166,2]
[352124622,1738955453438,-500.0,0.000166,2]
[352124624,1738955453448,-500.0,0.000166,2]
[352124626,1738955453457,-500.0,0.000166,2]
[352124628,1738955453467,-500.0,0.000166,2]
[352124629,1738955453476,-500.0,0.000166,2]
[352124631,1738955453485,-500.0,0.000166,2]
[352124633,1738955453495,-500.0,0.000166,2]
[352124635,1738955453504,-500.0,0.000166,2]
[352124637,1738955453513,-500.0,0.000166,2]
[352124639,1738955453523,-500.0,0.000166,2]
[352124641,1738955453535,-500.0,0.000166,2]
[352124643,1738955453545,-500.0,0.000166,2]
[352124645,1738955453554,-500.0,0.000166,2]
[352124647,1738955453564,-500.0,0.000166,2]
[352124649,1738955453573,-500.0,0.000166,2]
[352124651,1738955453583,-500.0,0.000166,2]
[352124652,1738955453592,-500.0,0.000166,2]
[352124653,1738955453601,-500.0,0.000166,2]
[352124654,1738955453610,-500.0,0.000166,2]
[352124655,1738955453619,-500.0,0.000166,2]
[352124656,1738955453628,-500.0,0.000166,2]
[352124657,1738955453638,-500.0,0.000166,2]
[352124658,1738955453647,-500.0,0.000166,2]
[352124659,1738955453656,-500.0,0.000166,2]
[352124660,1738955453665,-500.0,0.000166,2]
[352124661,1738955453675,-500.0,0.000166,2]
[352124662,1738955453684,-500.0,0.000166,2]
[352124663,1738955453694,-500.0,0.000166,2]
[352124664,1738955453703,-500.0,0.000166,2]
[352124665,1738955453713,-500.0,0.000166,2]
[352124666,1738955453722,-500.0,0.000166,2]
[352124668,1738955453731,-500.0,0.000166,2]
[352124670,1738955453741,-500.0,0.000166,2]
[352124672,1738955453750,-500.0,0.000166,2]
[352124674,1738955453759,-500.0,0.000166,2]
[352124676,1738955453768,-500.0,0.000166,2]
[352124677,1738955453778,-500.0,0.000166,2]
[352124679,1738955453787,-500.0,0.000166,2]
[352124682,1738955453796,-500.0,0.000166,2]
[352124684,1738955453806,-500.0,0.000166,2]
[352124686,1738955453815,-500.0,0.000166,2]
[352124688,1738955453824,-500.0,0.000166,2]
[352124690,1738955453833,-500.0,0.000166,2]
[352124692,1738955453843,-500.0,0.000166,2]
[352124694,1738955453852,-500.0,0.000166,2]
[352124696,1738955453861,-500.0,0.000166,2]
[352124697,1738955453870,-500.0,0.000166,2]
[352124700,1738955453880,-500.0,0.000166,2]
[352124702,1738955453889,-500.0,0.000166,2]
[352124704,1738955453898,-500.0,0.000166,2]
[352124706,1738955453908,-500.0,0.000166,2]
[352124708,1738955453917,-500.0,0.000166,2]
[352124710,1738955453927,-500.0,0.000166,2]
[352124712,1738955453936,-500.0,0.000166,2]
[352124714,1738955453946,-500.0,0.000166,2]
[352124716,1738955453955,-500.0,0.000166,2]
[352124718,1738955453964,-500.0,0.000166,2]
[352124720,1738955453974,-500.0,0.000166,2]
[352124722,1738955453983,-500.0,0.000166,2]
[352124724,1738955453993,-500.0,0.000166,2]
[352124726,1738955454002,-500.0,0.000166,2]
[352124728,1738955454011,-500.0,0.000166,2]
[352124730,1738955454020,-500.0,0.000166,2]
[352124732,1738955454031,-500.0,0.000166,2]
[352124734,1738955454041,-500.0,0.000166,2]
[352124736,1738955454051,-500.0,0.000166,2]
[352124738,1738955454061,-500.0,0.000166,2]
[352124740,1738955454070,-500.0,0.000166,2]
[352124742,1738955454080,-500.0,0.000166,2]
[352124744,1738955454090,-642.0,0.000166,2]
[352124746,1738955454100,-200.0,0.00016602,2]
[352124748,1738955454109,-150.0,0.00016613,2]
[352124750,1738955454118,-150.0,0.00016617,2]
[352124752,1738955454127,-150.0,0.00016621,2]
[352124754,1738955454136,-150.0,0.00016622,2]
[352124756,1738955454145,-205.08,0.00016626,2]
[352124758,1738955454155,-1272.0,0.00016627,2]
[352124760,1738955454168,-2022.0,0.00016627,2]
[352124762,1738955454177,-566.0,0.00016627,2]
[352124764,1738955454187,-638.0,0.00016627,2]
[352124766,1738955454196,-4000.0,0.0001663,2]
[352124768,1738955454206,-1000.0,0.00016639,2]
[352124770,1738955454215,-150.0,0.00016669,2]
[352124772,1738955454224,-150.0,0.0001667,2]
[352124774,1738955454234,-150.0,0.00016675,2]
[352124776,1738955454243,-150.0,0.0001668,2]
[352124778,1738955454252,-150.0,0.00016682,2]
[352124779,1738955454261,-150.0,0.00016695,2]
[352124781,1738955454271,-191.93871814,0.000167,2]
[352124784,1738955454282,-184.29271562,0.000167,2]
[352124786,1738955454291,-2070.04191313,0.000167,2]
[352124788,1738955454301,-221.61842117,0.000167,2]
[352124790,1738955454311,-1467.91549578,0.000167,2]
[352124792,1738955454320,-500.0,0.00016711,2]
[352124794,1738955454330,-1036.2,0.00016711,2]
[352124796,1738955454339,-500.0,0.00016711,2]
[352124797,1738955454348,-500.0,0.00016711,2]
[352124798,1738955454356,-1717.78,0.00016711,2]
[352124799,1738955454366,-500.0,0.00016711,2]
[352124800,1738955454375,-705.47,0.00016711,2]
[352124801,1738955454383,-1511.7,0.00016711,2]
[352124802,1738955454393,-500.0,0.00016711,2]
[352124803,1738955454401,-500.0,0.00016711,2]
[352124804,1738955454411,-500.0,0.00016711,2]
[352124805,1738955454420,-500.0,0.00016711,2]
[352124806,1738955454429,-500.0,0.00016711,2]
[352124807,1738955454438,-500.0,0.00016711,2]
[352124808,1738955454447,-500.0,0.00016711,2]
[352124809,1738955454456,-500.0,0.00016711,2]
[352124810,1738955454466,-1369.53,0.00016711,2]
[352124812,1738955454475,-500.0,0.00016711,2]
[352124814,1738955454484,-500.0,0.00016711,2]
[352124816,1738955454493,-500.0,0.00016711,2]
[352124818,1738955454503,-500.0,0.00016711,2]
[352124820,1738955454512,-500.0,0.00016711,2]
[352124822,1738955454522,-500.0,0.00016711,2]
[352124824,1738955454532,-404.73624305,0.00016711,2]
[352124827,1738955454542,-500.0,0.00016711,2]
[352124829,1738955454551,-500.0,0.00016711,2]
[352124830,1738955454560,-677.07,0.00016711,2]
[352124832,1738955454569,-500.0,0.00016711,2]
[352124835,1738955454579,-500.0,0.00016711,2]
[352124837,1738955454589,-1720.51,0.00016711,2]
[352124839,1738955454598,-500.0,0.00016711,2]
[352124841,1738955454607,-1513.11,0.00016711,2]
[352124843,1738955454616,-500.0,0.00016711,2]
[352124845,1738955454626,-698.98,0.00016711,2]
[352124846,1738955454635,-500.0,0.00016711,2]
[352124848,1738955454644,-1376.19,0.00016711,2]
[352124851,1738955454654,-500.0,0.00016711,2]
[352124853,1738955454663,-627.17,0.00016711,2]
[352124855,1738955454672,-500.0,0.00016711,2]
[352124857,1738955454682,-500.0,0.00016711,2]
[352124859,1738955454691,-1688.97,0.00016711,2]
[352124861,1738955454700,-500.0,0.00016711,2]
[352124863,1738955454710,-500.0,0.00016711,2]
[352124865,1738955454719,-500.0,0.00016711,2]
[352124867,1738955454728,-500.0,0.00016711,2]
[352124869,1738955454737,-1039.22,0.00016711,2]
[352124871,1738955454746,-500.0,0.00016711,2]
[352124873,1738955454755,-500.0,0.00016711,2]
[352124875,1738955454764,-500.0,0.00016711,2]
[352124877,1738955454774,-500.0,0.00016711,2]
[352124878,1738955454784,-500.0,0.00016711,2]
[352124879,1738955454794,-1895.57,0.00016711,2]
[352124880,1738955454803,-344.50658584,0.00016711,2]
[352124881,1738955454812,-500.0,0.00016711,2]
[352124882,1738955454821,-500.0,0.00016711,2]
[352124883,1738955454831,-500.0,0.00016711,2]
[352124884,1738955454840,-2029.24,0.00016711,2]
[352124885,1738955454849,-2782.31,0.00016711,2]
[352124886,1738955454858,-500.0,0.00016711,2]
[352124887,1738955454868,-1408.27,0.00016711,2]
[352124888,1738955454877,-1478.49,0.00016711,2]
[352124889,1738955454887,-1033.73,0.00016711,2]
[352124890,1738955454896,-500.0,0.00016711,2]
[352124891,1738955454905,-1778.73,0.00016711,2]
[352124892,1738955454916,-1753.38,0.00016711,2]
[352124893,1738955454925,-500.0,0.00016711,2]
[352124894,1738955454935,-500.0,0.00016711,2]
[352124895,1738955454994,-500.0,0.00016711,2]
[352124896,1738955455004,-1443.05,0.00016711,2]
[352124897,1738955455014,-500.0,0.00016711,2]
[352124898,1738955455023,-500.0,0.00016711,2]
[352124899,1738955455033,-1760.2,0.00016711,2]
[352124900,1738955455042,-500.0,0.00016711,2]
[352124901,1738955455051,-3132.67,0.00016711,2]
[352124902,1738955455060,-1884.07,0.00016711,2]
[352124903,1738955455070,-3959.36,0.00016711,2]
[352124904,1738955455079,-500.0,0.00016711,2]
[352124905,1738955455089,-668.89,0.00016711,2]
[352124906,1738955455098,-500.0,0.00016711,2]
[352124907,1738955455107,-500.0,0.00016711,2]
[352124908,1738955455117,-906.7,0.00016711,2]
[352124909,1738955455127,-500.0,0.00016711,2]
[352124910,1738955455136,-500.6836047,0.00016711,2]
[352124911,1738955455146,-1478.59,0.00016711,2]
[352124912,1738955455155,-1514.98,0.00016711,2]
[352124913,1738955455169,-500.0,0.00016711,2]
[352124914,1738955455179,-500.0,0.00016711,2]
[352124915,1738955455188,-500.0,0.00016711,2]
[352124916,1738955455197,-500.0,0.00016711,2]
[352124917,1738955455206,-4121.65,0.00016711,2]
[352124918,1738955455215,-500.0,0.00016711,2]
[352124919,1738955455225,-2610.4,0.00016711,2]
[352124920,1738955455234,-500.0,0.00016711,2]
[352124921,1738955455245,-1845.3,0.00016711,2]
[352124922,1738955455255,-3813.75,0.00016711,2]
[352124923,1738955455265,-2092.14,0.00016711,2]
[352124924,1738955455274,-4430.06,0.00016711,2]
[352124925,1738955455284,-2089.67,0.00016711,2]
[352124926,1738955455295,-500.0,0.00016711,2]
[352124927,1738955455304,-500.0,0.00016711,2]
[352124928,1738955455313,-2340.26,0.00016711,2]
[352124929,1738955455323,-500.0,0.00016711,2]
[352124930,1738955455332,-500.0,0.00016711,2]
[352124931,1738955455341,-500.0,0.00016711,2]
[352124932,1738955455350,-258.46856333,0.00016711,2]
[352124933,1738955455360,-255.94551745,0.00016711,2]
[352124934,1738955455370,-500.0,0.00016711,2]
[352124935,1738955455379,-500.0,0.00016711,2]
[352124936,1738955455388,-500.0,0.00016711,2]
[352124937,1738955455400,-500.0,0.00016711,2]
[352124938,1738955455410,-500.0,0.00016711,2]
[352124939,1738955455419,-500.0,0.00016711,2]
[352124940,1738955455429,-500.0,0.00016711,2]
[352124941,1738955455438,-203.22176539,0.00016711,2]
[352124942,1738955455447,-500.0,0.00016711,2]
[352124943,1738955455457,-500.0,0.00016711,2]
[352124944,1738955455466,-424.28173477,0.00016711,2]
[352124945,1738955455475,-500.0,0.00016712,2]
[352124946,1738955455484,-500.0,0.00016712,2]
[352124947,1738955455493,-500.0,0.00016712,2]
[352124948,1738955455502,-292.26470293,0.00016712,2]
[352124949,1738955455511,-500.0,0.00016712,2]
[352124950,1738955455521,-500.0,0.00016712,2]
[352124951,1738955455530,-500.0,0.00016712,2]
[352124952,1738955455539,-500.0,0.00016712,2]
[352124953,1738955455548,-500.0,0.00016712,2]
[352124954,1738955455557,-500.0,0.00016712,2]
[352124955,1738955455566,-500.0,0.00016712,2]
[352124956,1738955455576,-500.0,0.00016712,2]
[352124957,1738955455585,-500.0,0.00016712,2]
[352124958,1738955455594,-500.0,0.00016712,2]
[352124959,1738955455603,-500.0,0.00016712,2]
[352124960,1738955455612,-510.83081712,0.00016712,2]
[352124961,1738955455622,-500.0,0.00016712,2]
[352124962,1738955455631,-500.0,0.00016712,2]
[352124963,1738955455640,-500.0,0.00016712,2]
[352124964,1738955455649,-500.0,0.00016712,2]
[352124965,1738955455659,-500.0,0.00016712,2]
[352124966,1738955455668,-500.0,0.00016712,2]
[352124967,1738955455676,-500.0,0.00016712,2]
[352124968,1738955455686,-500.0,0.00016712,2]
[352124969,1738955455695,-500.0,0.00016712,2]
[352124970,1738955455704,-500.0,0.00016712,2]
[352124971,1738955455713,-500.0,0.00016712,2]
[352124972,1738955455723,-500.0,0.00016712,2]
[352124973,1738955455732,-500.0,0.00016712,2]
[352124974,1738955455741,-500.0,0.00016712,2]
[352124975,1738955455750,-500.0,0.00016712,2]
[352124976,1738955455759,-500.0,0.00016712,2]
[352124977,1738955455768,-500.0,0.00016712,2]
[352124978,1738955455777,-500.0,0.00016712,2]
[352124979,1738955455787,-532.48,0.00016712,2]
[352124980,1738955455796,-500.0,0.00016712,2]
[352124981,1738955455805,-500.0,0.00016712,2]
[352124982,1738955455815,-551.58,0.00016712,2]
[352124983,1738955455824,-500.0,0.00016712,2]
[352124984,1738955455833,-1356.13,0.00016712,2]
[352124985,1738955455842,-500.0,0.00016712,2]
[352124986,1738955455851,-500.0,0.00016712,2]
[352124987,1738955455861,-500.0,0.00016712,2]
[352124988,1738955455869,-573.64706925,0.00016712,2]
[352124989,1738955455879,-500.0,0.00016712,2]
[352124990,1738955455887,-500.0,0.00016712,2]
[352124991,1738955455896,-500.0,0.00016712,2]
[352124992,1738955455906,-500.0,0.00016712,2]
[352124993,1738955455915,-500.0,0.00016712,2]
[352124994,1738955455924,-513.88459256,0.00016712,2]
[352124995,1738955455934,-500.0,0.00016712,2]
[352124996,1738955455944,-500.0,0.00016712,2]
[352124997,1738955455955,-500.0,0.00016712,2]
[352124998,1738955455964,-500.0,0.00016712,2]
[352124999,1738955455973,-500.0,0.00016712,2]
[352125000,1738955455982,-500.0,0.00016712,2]
[352125001,1738955455992,-1926.06,0.00016712,60]
[352125002,1738955456001,-500.0,0.00016712,2]
[352125003,1738955456011,-500.0,0.00016712,2]
[352125004,1738955456020,-526.68,0.00016712,2]
[352125005,1738955456029,-500.0,0.00016712,2]
[352125006,1738955456038,-500.0,0.00016712,2]
[352125007,1738955456047,-500.0,0.00016712,2]
[352125008,1738955456057,-571.54,0.00016712,2]
[352125009,1738955456066,-1010.59,0.00016712,2]
[352125010,1738955456075,-500.0,0.00016712,2]
[352125011,1738955456085,-583.99,0.00016712,2]
[352125012,1738955456094,-500.0,0.00016712,2]
[352125013,1738955456103,-500.0,0.00016712,2]
[352125014,1738955456112,-500.0,0.00016712,2]
[352125015,1738955456122,-500.0,0.00016712,2]
[352125016,1738955456131,-715.56,0.00016712,2]
[352125017,1738955456140,-1203.97,0.00016712,2]
[352125018,1738955456149,-500.0,0.00016712,2]
[352125019,1738955456159,-500.0,0.00016712,2]
[352125020,1738955456171,-278.1160184,0.00016712,2]
[352125021,1738955456180,-559.78,0.00016712,2]
[352125022,1738955456189,-500.0,0.00016712,2]
[352125023,1738955456199,-500.0,0.00016712,2]
[352125024,1738955456210,-284.23290297,0.00016712,7]
[352125025,1738955456219,-500.0,0.00016712,2]
[352125026,1738955456228,-514.81,0.00016712,2]
[352125027,1738955456238,-379.66606948,0.00016712,2]
[352125028,1738955456247,-500.0,0.00016712,2]
[352125029,1738955456257,-547.93,0.00016712,2]
[352125030,1738955456266,-500.0,0.00016712,2]
[352125031,1738955456275,-404.70381731,0.00016712,2]
[352125032,1738955456285,-500.0,0.00016712,2]
[352125033,1738955456294,-500.0,0.00016712,2]
[352125034,1738955456304,-500.0,0.00016712,2]
[352125035,1738955456313,-1447.36,0.00016712,2]
[352125036,1738955456323,-500.0,0.00016712,2]
[352125037,1738955456332,-1156.75,0.00016712,2]
[352125038,1738955456341,-500.0,0.00016712,2]
[352125039,1738955456351,-500.0,0.00016712,2]
[352125040,1738955456361,-500.0,0.00016712,2]
[352125041,1738955456371,-500.0,0.00016712,2]
[352125042,1738955456380,-500.0,0.00016712,2]
[352125043,1738955456389,-500.0,0.00016712,2]
[352125044,1738955456398,-500.0,0.00016712,2]
[352125045,1738955456407,-500.0,0.00016712,2]
[352125046,1738955456417,-500.0,0.00016712,2]
[352125047,1738955456426,-500.0,0.00016712,2]
[352125048,1738955456435,-500.0,0.00016712,2]
[352125049,1738955456444,-500.0,0.00016712,2]
[352125050,1738955456453,-500.0,0.00016712,2]
[352125051,1738955456462,-500.0,0.00016712,2]
[352125052,1738955456471,-500.0,0.00016712,2]
[352125053,1738955456480,-500.0,0.00016712,2]
[352125054,1738955456489,-695.32,0.00016712,2]
[352125055,1738955456498,-500.0,0.00016712,2]
[352125056,1738955456507,-500.0,0.00016712,2]
[352125057,1738955456517,-500.0,0.00016712,2]
[352125058,1738955456526,-1372.87,0.00016712,2]
[352125059,1738955456538,-500.0,0.00016712,2]
[352125060,1738955456547,-500.0,0.00016712,2]
[352125061,1738955456557,-500.0,0.00016712,2]
[352125062,1738955456566,-521.52,0.00016712,2]
[352125063,1738955456575,-1260.57,0.00016712,2]
[352125064,1738955456585,-887.81,0.00016712,2]
[352125065,1738955456594,-500.0,0.00016712,2]
[352125066,1738955456604,-524.19,0.00016712,2]
[352125067,1738955456613,-500.0,0.00016712,2]
[352125068,1738955456623,-500.0,0.00016712,2]
[352125069,1738955456634,-500.0,0.00016712,2]
[352125070,1738955456644,-500.0,0.00016712,2]
[352125071,1738955456653,-500.0,0.00016712,2]
[352125072,1738955456663,-500.0,0.00016712,2]
[352125073,1738955456672,-500.0,0.00016712,2]
[352125074,1738955456681,-500.0,0.00016712,2]
[352125075,1738955456691,-500.0,0.00016712,2]
[352125076,1738955456700,-500.0,0.00016712,2]
[352125077,1738955456710,-500.0,0.00016712,2]
[352125078,1738955456720,-500.0,0.00016712,2]
[352125079,1738955456729,-439.47,0.00016712,2]
[352125080,1738955456738,-500.0,0.00016712,2]
[352125081,1738955456748,-500.0,0.00016712,2]
[352125082,1738955456757,-745.72,0.00016712,2]
[352125083,1738955456767,-1868.1,0.00016712,2]
[352125084,1738955456776,-500.0,0.00016712,2]
[352125085,1738955456787,-500.0,0.00016712,2]
[352125086,1738955456797,-506.27,0.00016712,2]
[352125087,1738955456806,-500.0,0.00016712,2]
[352125088,1738955456816,-500.0,0.00016712,2]